bitfinex/quotes_ETHUSD_20260109
["timestamp","ask_amount","ask_price","bid_price","bid_amount"]
[1767971341791,7.16203268,3072.3,3071.0,1.23229664]
[1767971341792,0.65215622,3072.3,3071.0,1.23229664]
[1767971342065,0.001,3072.3,3071.0,1.23229664]
[1767971342374,6.51085252,3072.3,3071.1,0.255]
[1767971342584,6.51085252,3072.3,3071.2,0.255]
[1767971343101,6.51085252,3072.3,3070.9,3.256359]
[1767971343302,0.001,3072.3,3071.1,3.25616228]
[1767971343510,0.001,3072.3,3071.2,1.32865677]
[1767971343718,0.00081769,3072.6,3071.5,0.97754054]
[1767971344015,0.001,3073.4,3072.3,0.97754054]
[1767971344499,0.001,3073.4,3072.2,0.0008185]
[1767971344705,0.001,3073.4,3072.4,0.255]
[1767971344907,3.58025442,3073.4,3072.2,0.97835904]
[1767971345120,6.50857766,3073.4,3072.3,0.255]
[1767971345419,0.001,3073.4,3072.2,0.2558185]
[1767971346274,0.001,3073.4,3072.3,0.255]
[1767971346488,0.00080432,3073.7,3072.4,0.97754054]
[1767971347172,0.00080432,3073.7,3072.5,0.255]
[1767971347508,0.00080432,3073.7,3072.4,0.97754054]
[1767971347722,0.00080432,3073.7,3072.4,0.255]
[1767971348093,11.614335,3073.6,3072.2,0.2558185]
[1767971348303,0.1236869,3072.4,3072.2,0.0008185]
[1767971348599,0.001,3073.4,3072.2,3.25581063]
[1767971348922,0.001,3073.4,3072.2,0.0008185]
[1767971349378,0.001,3073.4,3072.3,0.255]
[1767971349892,6.524562,3073.3,3072.2,0.0008185]
[1767971350074,0.74807253,3073.2,3072.2,0.0008185]
[1767971350267,2.964644,3073.3,3072.2,0.0008185]
[1767971350517,2.252402,3073.3,3072.2,0.0008185]
[1767971350984,2.252402,3073.3,3071.1,0.00080544]
[1767971350985,0.0008185,3072.6,3071.6,3.25562745]
[1767971351187,0.0008185,3072.6,3071.1,0.00080544]
[1767971351387,0.0008185,3072.6,3071.2,0.255]
[1767971351598,0.0008185,3072.6,3071.2,3.51105626]
[1767971351801,0.0008185,3072.6,3071.3,0.35118617]
[1767971352096,0.0008185,3072.6,3071.4,0.255]
[1767971352487,0.0008185,3072.6,3071.1,0.00080544]
[1767971352908,14.38081729,3072.5,3071.1,0.00080544]
[1767971353230,0.00080544,3072.4,3071.1,3.25615459]
[1767971353522,0.00080544,3072.4,3071.2,3.26733411]
[1767971354015,0.00080544,3072.4,3071.2,3.25605626]
[1767971354214,0.00080544,3072.4,3071.2,6.51211252]
[1767971354414,0.00080544,3072.4,3071.3,0.97754054]
[1767971354754,0.00080544,3072.4,3071.4,0.255]
[1767971354882,0.00080544,3072.4,3071.3,0.97754054]
[1767971355078,0.00080544,3072.4,3071.4,1.00396531]
[1767971355588,0.00080544,3072.4,3071.5,3.25573823]
[1767971357015,0.00080544,3072.4,3071.4,0.74896531]
[1767971357205,0.00080544,3072.4,3071.5,0.03255737]
[1767971357405,0.00080544,3072.4,3071.4,6.76668676]
[1767971358716,0.00080544,3072.4,3071.4,3.25584252]
[1767971359224,0.00080544,3072.4,3071.3,3.25587987]
[1767971359426,0.00080544,3072.4,3070.7,0.97754054]
[1767971359826,0.00080544,3072.4,3070.8,3.51148039]
[1767971360020,0.00080544,3072.4,3070.9,0.35114804]
[1767971360608,0.00080544,3072.4,3071.7,0.002]
[1767971361007,0.95596873,3072.4,3071.4,0.002]
[1767971361220,0.95596873,3072.4,3071.1,0.255]
[1767971361425,0.00080544,3072.4,3071.1,0.255]
[1767971361738,0.00080544,3072.4,3070.9,3.60748395]
[1767971361900,0.00080544,3072.4,3071.2,0.255]
[1767971363209,0.00080544,3072.4,3071.2,1.23254054]
[1767971363734,0.00080544,3072.4,3071.3,3.25595024]
[1767971364239,0.00080544,3072.4,3071.1,3.25610595]
[1767971364426,0.00080544,3072.4,3071.4,0.255]
[1767971364919,0.00080544,3072.4,3071.4,0.35110378]
[1767971365109,0.00080544,3072.4,3071.5,0.255]
[1767971365309,0.00080544,3072.4,3071.6,0.03255632]
[1767971365514,0.00080544,3072.4,3071.6,0.28755632]
[1767971365909,0.00080544,3072.4,3071.6,0.255]
[1767971366129,0.00080544,3072.4,3071.6,0.64117854]
[1767971366320,0.00080544,3072.4,3071.4,0.255]
[1767971366658,0.95516329,3072.2,3070.3,3.89]
[1767971366870,0.95516329,3072.0,3070.5,3.2567951]
[1767971367072,0.95516329,3072.0,3070.4,3.25687408]
[1767971367361,0.95516329,3072.0,3070.2,0.00080208]
[1767971367567,0.95516329,3072.0,3070.5,0.255]
[1767971368328,6.5106286,3071.9,3070.5,3.86296231]
[1767971368746,9.7659429,3071.9,3070.5,0.35118041]
[1767971368940,0.95516329,3071.8,3070.2,0.00080208]
[1767971369160,0.95516329,3071.8,3070.5,3.25678142]
[1767971369324,0.95516329,3071.8,3070.4,0.255]
[1767971369541,1.07211062,3071.7,3070.4,0.60627792]
[1767971369771,1.07211062,3071.7,3070.5,3.25676854]
[1767971370270,1.07211062,3071.7,3070.4,0.60627792]
[1767971370271,6.51126448,3071.6,3070.4,0.60627792]
[1767971370476,3.2555335,3071.7,3070.5,0.97754054]
[1767971370680,6.511067,3071.7,3070.4,3.25682337]
[1767971370834,6.511067,3071.7,3070.4,3.25688805]
[1767971371167,6.511067,3071.7,3070.5,0.255]
[1767971371335,0.95516329,3071.6,3070.4,0.255]
[1767971371530,0.74662303,3071.5,3070.4,0.255]
[1767971371724,0.95516329,3071.6,3070.4,6.76874474]
[1767971371968,9.7666005,3071.7,3070.5,0.255]
[1767971372555,7.46600383,3071.8,3070.5,0.255]
[1767971372870,10.7214241,3071.8,3070.2,0.00080208]
[1767971373027,0.9703818,3071.7,3070.3,0.255]
[1767971373222,1.07366426,3071.6,3070.3,0.255]
[1767971373533,1.07366426,3071.6,3070.8,0.002]
[1767971373733,1.07366426,3071.6,3070.2,0.00080208]
[1767971373935,1.07366426,3071.6,3070.5,0.002]
[1767971374933,6.51147646,3071.5,3070.5,0.257]
[1767971375135,0.75851407,3071.4,3070.5,0.257]
[1767971375776,3.25573823,3071.5,3070.5,0.257]
[1767971376480,1.01704539,3072.1,3070.6,0.92319514]
[1767971376481,3.25611767,3072.1,3070.6,0.92319514]
[1767971376782,6.51123534,3072.1,3070.6,0.92319514]
[1767971376938,0.001,3072.1,3070.7,7.43636802]
[1767971377140,0.001,3072.1,3070.8,0.92319514]
[1767971377356,0.001,3072.1,3070.9,0.9986368]
[1767971378637,0.001,3072.1,3071.0,0.92319514]
[1767971379059,0.001,3072.1,3071.1,4.17935742]
[1767971379458,0.001,3072.1,3070.9,0.7436368]
[1767971379667,0.001,3072.1,3071.0,0.255]
[1767971379861,0.001,3072.1,3071.0,4.43443226]
[1767971380060,0.001,3072.1,3071.1,0.92319514]
[1767971380874,0.001,3072.1,3071.2,0.255]
[1767971381077,0.001,3072.1,3070.8,4.17967553]
[1767971381381,0.001,3072.1,3070.9,0.255]
[1767971381559,0.001,3072.1,3070.9,1.17819514]
[1767971381954,0.001,3072.1,3070.9,0.92319514]
[1767971382355,0.001,3072.1,3071.0,0.255]
[1767971382561,0.001,3072.1,3071.1,0.92319514]
[1767971382878,0.00080544,3072.4,3071.4,0.92319514]
[1767971383080,0.00080544,3072.4,3071.5,6.51147646]
[1767971383268,0.00080544,3072.4,3071.7,0.92319514]
[1767971383767,0.0008185,3072.6,3071.7,0.92319514]
[1767971384378,0.0008185,3072.6,3071.8,0.255]
[1767971384582,0.0008185,3072.6,3071.9,0.255]
[1767971384817,0.0008185,3072.6,3071.8,0.255]
[1767971385790,0.0008185,3072.6,3071.8,0.60604221]
[1767971386152,0.001,3072.3,3071.9,0.255]
[1767971386498,0.001,3072.3,3072.0,0.255]
[1767971386705,0.10267376,3072.0,3071.9,0.255]
[1767971386984,0.10267376,3072.0,3071.5,0.255]
[1767971388281,0.10267376,3072.0,3071.5,3.51073066]
[1767971388460,0.10267376,3072.0,3071.5,3.51073339]
[1767971388667,0.10267376,3072.0,3071.5,5.110593]
[1767971388863,0.001,3072.3,3071.6,0.92319514]
[1767971389289,0.001,3072.3,3071.7,3.25552625]
[1767971389496,0.001,3072.3,3071.7,4.2066676]
[1767971389695,0.0008185,3072.6,3071.9,0.95114135]
[1767971389992,0.001,3073.4,3072.3,0.95114135]
[1767971390170,0.001,3073.4,3072.5,0.95114135]
[1767971391086,3.25473005,3073.4,3072.5,0.95114135]
[1767971391289,3.25473005,3073.4,3072.6,0.255]
[1767971391483,0.001,3073.4,3072.2,0.00081931]
[1767971391686,0.001,3073.4,3072.3,0.9061024]
[1767971391885,0.001,3073.4,3072.4,0.255]
[1767971392454,0.001,3073.4,3072.2,0.00081931]
[1767971392659,0.001,3073.4,3072.4,0.95114135]
[1767971393463,0.001,3073.4,3072.5,3.2546786]
[1767971393673,0.001,3073.4,3072.6,1.69720098]
[1767971393873,0.001,3073.4,3072.6,0.74605963]
[1767971394115,0.001,3073.4,3072.7,0.255]
[1767971394806,0.001,3073.4,3072.8,0.255]
[1767971395516,0.001,3073.4,3072.8,3.50927649]
[1767971395864,0.001,3073.4,3072.9,0.255]
[1767971396281,0.00080432,3073.7,3072.9,1.20614135]
[1767971396888,0.00080432,3073.7,3073.0,0.7714863]
[1767971397192,0.00080432,3073.7,3073.1,0.255]
[1767971397585,0.00080432,3073.7,3072.5,3.25458746]
[1767971397785,0.00080432,3073.7,3072.6,3.50951813]
[1767971398001,0.00080432,3073.7,3072.6,0.255]
[1767971398217,0.00080432,3073.7,3072.5,3.25466787]
[1767971398218,0.001,3073.1,3072.5,3.25466787]
[1767971398418,0.001,3073.1,3072.7,0.35096679]
[1767971398719,0.001,3073.1,3072.6,0.255]
[1767971399223,0.001,3073.1,3072.7,0.255]
[1767971399424,0.001,3073.1,3072.5,3.25465287]
[1767971399607,0.001,3073.1,3072.6,0.255]
[1767971399924,0.001,3073.1,3072.7,0.255]
[1767971400422,0.001,3073.1,3072.2,0.00081931]
[1767971401748,0.001,3073.1,3072.2,0.95196066]
[1767971402522,3.25423182,3073.7,3072.2,0.95196066]
[1767971402735,0.00080432,3073.7,3072.4,0.98101315]
[1767971403029,0.00080272,3074.0,3072.9,0.98101315]
[1767971403250,0.00080272,3074.0,3073.0,1.2503444]
[1767971403530,0.00080272,3074.0,3073.0,1.23601315]
[1767971403748,0.00080272,3074.0,3073.1,3.25404314]
[1767971403976,0.0008036,3074.6,3073.1,3.25404314]
[1767971403977,0.0008036,3074.6,3073.3,0.98101315]
[1767971404110,0.0008036,3074.6,3073.3,0.98181603]
[1767971404958,0.001,3075.1,3073.9,0.98101315]
[1767971405174,0.001,3075.1,3074.1,0.98101315]
[1767971405642,0.001,3075.1,3074.2,4.23389194]
[1767971405845,0.001,3075.1,3074.3,1.40440234]
[1767971406144,0.001,3075.1,3074.4,0.255]
[1767971406444,0.001,3075.1,3074.5,0.98101315]
[1767971406811,0.001,3075.1,3074.6,0.255]
[1767971407379,0.001,3075.1,3074.7,0.255]
[1767971407645,0.001,3075.1,3074.7,0.25380197]
[1767971409010,0.001,3075.1,3074.8,0.255]
[1767971409614,0.00080416,3075.5,3074.9,0.35073152]
[1767971409808,0.00081931,3075.7,3074.9,1.33174467]
[1767971410034,6.67052121,3076.8,3075.3,0.98183327]
[1767971410206,6.67052121,3076.8,3075.4,4.48762269]
[1767971410407,6.50110111,3076.8,3075.4,1.23601315]
[1767971410622,0.65011011,3076.7,3075.5,0.44885399]
[1767971410826,0.00080432,3076.8,3075.6,0.98101315]
[1767971411237,0.04566359,3076.7,3075.6,0.255]
[1767971411439,0.04566359,3076.3,3075.3,0.00082012]
[1767971411923,0.04566359,3076.1,3075.3,0.00082012]
[1767971412341,6.54700556,3076.3,3075.3,0.00082012]
[1767971412655,0.04566359,3076.1,3075.3,0.00082012]
[1767971412851,0.04566359,3075.9,3075.3,0.00082012]
[1767971413551,0.00082012,3075.7,3074.8,0.255]
[1767971413753,0.00082012,3075.7,3074.6,0.98101315]
[1767971413952,0.00082012,3075.7,3074.7,0.255]
[1767971414354,0.00082012,3075.7,3074.7,1.23601315]
[1767971414658,0.00082012,3075.7,3074.8,0.98101315]
[1767971415051,0.3260109,3075.7,3074.4,0.98101315]
[1767971415222,0.3260109,3075.7,3074.4,4.23364154]
[1767971415423,0.3260109,3075.7,3074.5,4.48847294]
[1767971415631,0.3260109,3075.7,3074.5,4.48852816]
[1767971415927,0.3260109,3075.7,3074.6,0.255]
[1767971416122,0.3260109,3075.7,3074.7,0.44885308]
[1767971416322,0.00082012,3075.7,3074.8,0.98101315]
[1767971416745,0.00082012,3075.7,3074.9,0.255]
[1767971416948,0.00082012,3075.7,3074.8,0.98101315]
[1767971417125,0.00082012,3075.7,3074.9,0.255]
[1767971417622,0.00082012,3075.7,3075.0,0.44882521]
[1767971418029,3.25052852,3076.5,3075.1,0.98101315]
[1767971418236,0.04566359,3076.4,3075.3,0.00082094]
[1767971418436,3.29621618,3076.4,3075.3,0.00082094]
[1767971418730,0.04566359,3076.7,3075.3,0.98183409]
[1767971419065,0.00080432,3076.8,3075.3,0.98183409]
[1767971419242,0.00080432,3076.8,3075.5,0.98101315]
[1767971419437,0.00080432,3076.8,3075.7,0.98101315]
[1767971420473,0.00080432,3076.8,3076.0,0.98101315]
[1767971420630,0.00080432,3076.8,3076.1,1.72933066]
[1767971420832,0.00080208,3077.1,3076.2,0.98101315]
[1767971421243,0.00080208,3077.1,3076.1,0.74831751]
[1767971421442,0.00080208,3077.1,3075.9,0.255]
[1767971421443,0.04566359,3077.0,3075.9,0.255]
[1767971421684,0.04566359,3076.8,3075.9,0.255]
[1767971421831,0.04566359,3076.9,3075.9,0.255]
[1767971422228,0.00080208,3077.1,3075.9,1.23601315]
[1767971422440,0.00080208,3077.1,3076.0,0.255]
[1767971422638,0.04566359,3077.0,3075.8,0.255]
[1767971422868,0.00080208,3077.1,3076.0,0.98101315]
[1767971423044,0.00080208,3077.1,3076.2,0.98101315]
[1767971423967,0.0008036,3077.7,3076.4,0.98181539]
[1767971424168,0.0008036,3077.7,3076.6,0.98101315]
[1767971424345,0.0008036,3077.7,3076.7,4.23124879]
[1767971424550,0.0008036,3077.7,3076.7,7.48148443]
[1767971424736,0.0008036,3077.7,3076.8,0.74814844]
[1767971425245,0.0008036,3077.7,3076.9,0.255]
[1767971425451,0.0008036,3077.7,3076.4,0.00080224]
[1767971425452,0.0008036,3077.7,3077.0,0.255]
[1767971426942,0.0008036,3077.7,3077.0,3.50487192]
[1767971427139,0.0008036,3077.7,3077.0,6.75479067]
[1767971427342,0.001,3077.9,3077.1,0.67547907]
[1767971427563,0.92724423,3078.5,3077.1,0.67547907]
[1767971427775,0.00080384,3078.6,3077.2,0.98101315]
[1767971427954,3.24903812,3078.6,3077.2,0.98101315]
[1767971428277,0.00080384,3078.6,3077.2,0.98101315]
[1767971428477,0.00080384,3078.6,3077.5,0.98101315]
[1767971428696,0.00080384,3078.6,3077.7,0.98101315]
[1767971428982,0.0008275,3078.8,3077.8,0.255]
[1767971429141,0.0008275,3078.8,3077.4,6.49899264]
[1767971429343,0.0008275,3078.8,3077.3,0.16645338]
[1767971429677,0.65047529,3078.8,3077.5,0.255]
[1767971430186,0.65047529,3078.8,3077.3,3.41597608]
[1767971430390,6.4962484,3078.7,3077.3,0.16645338]
[1767971430538,6.4962484,3078.7,3077.3,0.00080416]
[1767971430742,9.7443726,3078.7,3077.3,0.00080416]
[1767971430948,0.04566359,3078.4,3077.3,0.00080416]
[1767971431241,0.04566359,3078.4,3076.7,0.00080384]
[1767971431242,0.92724423,3077.6,3076.7,0.00080384]
[1767971431470,0.00080224,3077.1,3075.3,0.00082094]
[1767971431689,0.00080224,3077.1,3075.4,0.255]
[1767971431985,0.04566359,3076.8,3075.3,0.00082094]
[1767971432152,0.97290782,3076.8,3075.3,0.00082094]
[1767971432342,6.50089386,3076.5,3075.3,0.00082094]
[1767971432543,0.65465575,3076.4,3075.3,0.00082094]
[1767971432762,0.70031934,3076.4,3075.3,0.00082094]
[1767971432962,0.70031934,3076.4,3074.9,0.0008048]
[1767971432963,0.04566359,3076.0,3074.9,0.0008048]
[1767971433250,0.00082094,3075.7,3074.9,0.0008048]
[1767971433643,0.00082094,3075.7,3074.2,0.00080448]
[1767971433870,0.00082094,3075.7,3074.3,0.32537474]
[1767971434045,0.00082094,3075.7,3074.2,3.25365282]
[1767971434252,0.00082094,3075.7,3074.5,3.25249031]
[1767971434448,0.00082094,3075.7,3074.2,0.00080448]
[1767971434682,0.00082094,3075.7,3074.2,0.92895036]
[1767971435344,0.00082094,3075.7,3074.3,0.255]
[1767971435541,0.00082094,3075.7,3074.4,0.255]
[1767971435748,0.00082094,3075.7,3074.5,0.92814588]
[1767971436051,0.04566359,3076.6,3075.0,0.92814588]
[1767971436354,1.03587106,3077.0,3075.3,0.00082176]
[1767971436355,3.25097053,3076.8,3075.3,0.00082176]
[1767971436572,0.65009974,3076.7,3075.4,0.255]
[1767971436949,1.03587106,3076.6,3075.3,0.00082176]
[1767971437145,0.65009974,3076.7,3075.3,0.00082176]
[1767971438547,0.0008048,3076.8,3075.3,0.92896764]
[1767971439552,3.25094151,3076.8,3075.3,0.92896764]
[1767971439969,0.0008048,3076.8,3075.3,0.92896764]
[1767971440664,0.0008048,3076.8,3075.5,0.92814588]
[1767971441077,0.0008048,3076.8,3075.4,3.50660954]
[1767971441267,0.0008048,3076.8,3075.5,0.35074313]
[1767971441657,0.0008048,3076.8,3075.5,0.60574313]
[1767971441857,0.0008048,3076.8,3075.5,0.35074313]
[1767971442253,0.0008048,3076.8,3075.4,0.255]
[1767971442678,0.0008048,3076.8,3075.3,0.00082176]
[1767971442881,11.53309,3076.7,3075.3,0.00082176]
[1767971443066,0.0008048,3076.8,3075.3,0.00082176]
[1767971444577,0.0008048,3076.8,3075.3,0.92896764]
[1767971445368,0.0008048,3076.8,3075.4,1.18314588]
[1767971445563,0.0008048,3076.8,3075.5,0.92814588]
[1767971445783,0.0008048,3076.8,3075.6,0.255]
[1767971445992,0.0008048,3076.8,3075.4,0.92814588]
[1767971446180,0.0008048,3076.8,3075.3,0.00082176]
[1767971446385,0.0008048,3076.8,3075.6,0.002]
[1767971446695,0.001,3076.5,3075.6,0.002]
[1767971450713,3.25144693,3076.5,3075.6,0.002]
[1767971450880,6.50189386,3076.5,3075.6,0.002]
[1767971451059,3.25144693,3076.5,3075.6,0.002]
[1767971451262,3.92693414,3076.5,3075.6,0.002]
[1767971451483,7.17738107,3076.5,3075.6,0.002]
[1767971452296,3.92693414,3076.5,3075.6,0.002]
[1767971452594,0.001,3076.5,3075.6,0.002]
[1767971452776,0.001,3076.5,3075.6,0.96946983]
[1767971452979,0.001,3076.5,3075.6,0.002]
[1767971454199,0.253,3076.4,3075.3,0.00282176]
[1767971454702,0.00082176,3075.7,3074.7,0.96746983]
[1767971454999,0.00082176,3075.7,3074.2,0.96827431]
[1767971455303,0.00082176,3075.7,3074.3,3.25270194]
[1767971455488,0.00082176,3075.7,3074.4,0.74737589]
[1767971455873,0.00082176,3075.7,3074.2,3.2536143]
[1767971455874,1.18400447,3075.7,3074.2,3.2536143]
[1767971456079,1.18400447,3075.7,3074.2,0.00080448]
[1767971456274,1.18400447,3075.7,3074.4,3.25260972]
[1767971456275,0.253,3075.6,3074.4,3.25260972]
[1767971456481,0.253,3075.6,3074.3,3.25272932]
[1767971456667,6.50300764,3075.5,3074.3,3.25272932]
[1767971456875,0.67560076,3075.4,3074.3,3.25272932]
[1767971457094,3.25150382,3075.5,3074.3,3.25272932]
[1767971457310,6.50300764,3075.5,3074.2,4.22113784]
[1767971457490,3.25150382,3075.5,3074.2,4.22113784]
[1767971457687,0.00082176,3075.7,3074.3,0.96746983]
[1767971457913,0.00082176,3075.7,3074.5,0.96746983]
[1767971458065,3.25146864,3076.5,3075.3,0.00082258]
[1767971458271,6.50193728,3076.5,3075.3,0.00082258]
[1767971459005,0.001,3076.5,3075.3,0.00082258]
[1767971460283,0.001,3076.2,3075.3,0.00082258]
[1767971460489,0.001,3076.2,3075.5,0.96746983]
[1767971460794,0.001,3076.5,3075.5,0.96746983]
[1767971460994,0.001,3076.5,3075.4,0.90544048]
[1767971461290,0.001,3076.5,3075.4,3.90202153]
[1767971461492,0.001,3076.5,3075.4,0.65044048]
[1767971461807,0.001,3076.5,3075.5,0.39029347]
[1767971461975,0.001,3076.5,3075.3,0.00082258]
[1767971462177,0.001,3076.5,3075.3,0.96829241]
[1767971462608,0.001,3076.5,3075.5,3.25145761]
[1767971462778,0.001,3076.5,3075.4,3.25154997]
[1767971462979,0.001,3076.5,3075.4,3.25158253]
[1767971463178,0.001,3076.5,3075.5,0.32524051]
[1767971464908,0.001,3076.5,3075.5,1.2431127]
[1767971465273,0.001,3076.5,3075.6,3.2513981]
[1767971465477,0.001,3076.5,3075.6,6.5027962]
[1767971465807,0.001,3076.5,3075.7,0.91787219]
[1767971465995,0.001,3076.5,3075.8,0.99706684]
[1767971466197,0.001,3076.5,3075.5,0.32524051]
[1767971466403,0.001,3076.5,3075.5,3.57671606]
[1767971466602,0.001,3076.5,3075.5,0.32524051]
[1767971466981,0.001,3076.5,3075.3,0.25582258]
[1767971467181,0.001,3076.5,3075.3,3.50745738]
[1767971467381,0.001,3076.5,3075.3,0.25582258]
[1767971467577,0.91035173,3076.5,3075.3,0.00082258]
[1767971468292,0.001,3076.5,3075.3,0.91869477]
[1767971468513,0.001,3076.5,3075.3,0.00082258]
[1767971468731,15.45461232,3076.4,3075.3,0.00082258]
[1767971468910,1.54556123,3076.3,3075.3,0.00082258]
[1767971469081,0.29866359,3076.4,3075.3,0.00082258]
[1767971469485,6.5013165,3076.3,3075.3,0.00082258]
[1767971469984,9.75197475,3076.3,3075.3,0.00082258]
[1767971470517,13.019395,3076.2,3075.3,0.00082258]
[1767971470704,0.00082258,3075.7,3074.6,0.002]
[1767971470910,0.00082258,3075.7,3074.6,3.60537234]
[1767971471098,0.00082258,3075.7,3074.7,4.1701718]
[1767971471423,0.00082258,3075.7,3074.8,4.17007819]
[1767971471625,0.00082258,3075.7,3074.6,0.35294973]
[1767971471786,0.00082258,3075.7,3074.3,0.002]
[1767971471787,0.04566359,3075.3,3074.3,0.002]
[1767971471982,0.04566359,3075.0,3074.0,0.002]
[1767971472183,0.04566359,3075.0,3073.6,0.00080384]
[1767971472184,0.04566359,3074.6,3073.6,0.00080384]
[1767971472433,0.04566359,3074.6,3073.3,0.00080288]
[1767971472434,0.04566359,3074.3,3073.3,0.00080288]
[1767971472600,0.04566359,3074.1,3073.3,0.00080288]
[1767971472796,0.04566359,3074.1,3073.0,0.002]
[1767971472797,0.00080288,3074.0,3073.0,0.002]
[1767971472988,0.00080288,3074.0,3073.1,0.32561877]
[1767971472989,0.25380288,3074.0,3073.1,0.32561877]
[1767971473189,0.00080288,3074.0,3073.1,0.32561877]
[1767971473414,0.00080288,3074.0,3073.4,0.002]
[1767971473619,0.00080288,3074.0,3073.0,0.002]
[1767971476922,0.00080288,3074.0,3073.0,0.91987219]
[1767971477121,0.00080288,3074.0,3073.2,0.91787219]
[1767971477291,0.00080384,3074.6,3073.2,0.91787219]
[1767971477493,0.00080384,3074.6,3073.3,0.00080304]
[1767971477687,0.00080384,3074.6,3073.3,3.25463442]
[1767971477915,0.00080384,3074.6,3073.4,0.74263636]
[1767971478197,0.00080384,3074.6,3073.5,0.91787219]
[1767971479801,0.00080384,3074.6,3073.7,0.91787219]
[1767971480206,0.00080384,3074.6,3073.8,0.91787219]
[1767971480438,0.00080384,3074.6,3073.5,3.25359128]
[1767971480621,0.00080384,3074.6,3073.5,0.49149029]
[1767971480835,0.00080384,3074.6,3073.4,3.50868956]
[1767971481014,0.00080384,3074.6,3073.5,3.25359158]
[1767971481338,0.00080384,3074.6,3073.3,0.00080304]
[1767971481523,0.00080384,3074.6,3073.4,3.25366534]
[1767971481707,0.00080384,3074.6,3073.5,3.25359138]
[1767971481908,0.00080384,3074.6,3073.3,0.00080304]
[1767971481909,0.00080384,3074.6,3073.6,0.32535914]
[1767971482231,0.00080384,3074.6,3073.4,0.91787219]
[1767971482535,6.50332543,3075.4,3074.0,0.91787219]
[1767971483239,6.50332543,3075.4,3073.6,0.91867627]
[1767971483240,4.15860232,3075.3,3073.6,0.91867627]
[1767971483405,0.90935173,3074.9,3073.6,0.00080408]
[1767971483605,0.04566359,3074.7,3073.6,0.00080408]
[1767971483918,6.5049112,3074.6,3073.6,0.00080408]
[1767971484104,1.02595968,3074.5,3073.6,0.00080408]
[1767971484304,0.04566359,3074.3,3073.3,0.00080304]
[1767971484818,0.04566359,3074.1,3073.3,0.00080304]
[1767971485138,0.04566359,3074.1,3073.0,0.002]
[1767971485139,0.25380304,3074.0,3073.0,0.002]
[1767971485321,0.04566359,3073.9,3073.0,0.002]
[1767971485517,0.04566359,3073.9,3071.9,0.91787219]
[1767971485518,0.04566359,3073.5,3071.9,0.91787219]
[1767971485721,0.04566359,3073.5,3071.8,0.0008048]
[1767971485926,6.50745102,3073.4,3071.8,0.0008048]
[1767971486243,0.90831146,3073.3,3071.9,0.91787219]
[1767971486446,0.253,3073.2,3071.9,0.91787219]
[1767971486743,0.253,3073.2,3071.8,0.0008048]
[1767971488041,6.50808628,3073.1,3071.8,0.0008048]
[1767971488253,0.00081931,3072.6,3071.8,0.0008048]
[1767971490112,3.25539198,3072.6,3071.8,0.0008048]
[1767971490426,0.00081931,3072.6,3071.8,0.0008048]
[1767971490953,0.37960206,3072.6,3071.8,0.0008048]
[1767971492242,0.37960206,3072.6,3071.1,0.91867795]
[1767971492243,0.04566359,3072.4,3071.1,0.91867795]
[1767971492552,0.253,3072.4,3071.1,4.17484023]
[1767971492728,0.253,3072.4,3071.1,0.91867795]
[1767971493051,0.04566359,3072.2,3071.1,0.00080576]
[1767971493719,0.04566359,3072.2,3071.1,3.25688246]
[1767971493917,0.04566359,3072.2,3071.1,0.75103458]
[1767971494245,0.04566359,3072.2,3071.1,0.00080576]
[1767971494444,0.04566359,3072.0,3070.5,0.99114089]
[1767971494646,0.04566359,3071.8,3070.5,0.002]
[1767971494951,0.253,3071.7,3070.5,3.25875652]
[1767971495122,0.253,3071.7,3070.5,0.002]
[1767971495446,0.253,3071.7,3070.5,3.2587339]
[1767971495646,0.04566359,3072.0,3070.5,1.66821355]
[1767971495829,0.253,3071.6,3070.5,0.002]
[1767971496025,0.04566359,3071.1,3070.2,0.00080208]
[1767971496226,0.04566359,3071.1,3070.1,0.002]
[1767971496227,0.04646567,3070.9,3069.2,0.99114089]
[1767971496425,0.04646567,3070.9,3069.3,3.25797989]
[1767971496426,6.51296078,3070.8,3069.3,3.25797989]
[1767971496629,9.76944117,3070.8,3069.2,4.24929254]
[1767971496846,1.61230647,3070.7,3069.2,3.68518074]
[1767971497554,1.61230647,3070.7,3069.8,0.002]
[1767971497555,0.253,3070.6,3069.8,0.002]
[1767971498327,3.50971464,3070.6,3069.8,0.002]
[1767971498554,0.253,3070.7,3069.8,0.002]
[1767971499051,3.50961708,3070.7,3069.8,0.002]
[1767971499224,4.18629738,3070.7,3069.8,0.002]
[1767971499939,7.44291446,3070.7,3069.8,0.002]
[1767971500139,4.18632766,3070.7,3069.8,0.002]
[1767971500558,0.9296803,3070.7,3069.8,0.002]
[1767971500856,4.1863275,3070.7,3069.8,0.002]
[1767971501157,0.00080208,3070.9,3069.8,0.002]
[1767971501158,0.00080208,3070.9,3069.8,0.99114089]
[1767971502765,0.00080208,3070.9,3070.0,0.98914089]
[1767971504453,0.00080208,3070.9,3069.8,0.002]
[1767971504643,0.25380208,3070.9,3069.8,0.002]
[1767971505231,0.25380208,3070.9,3069.8,0.99114089]
[1767971505641,0.00080208,3070.9,3069.8,0.99114089]
[1767971505844,0.00080208,3070.9,3069.9,0.98914089]
[1767971506340,0.00080208,3070.9,3070.0,0.98914089]
[1767971506568,0.00080208,3070.9,3070.1,6.51444578]
[1767971506865,0.00080208,3070.9,3070.2,0.98914089]
[1767971507665,0.00080208,3070.9,3070.1,6.51444578]
[1767971507866,0.00080208,3070.9,3070.1,3.93416747]
[1767971508069,0.00080208,3070.9,3070.1,6.51444578]
[1767971508934,0.00080208,3070.9,3070.0,3.25732899]
[1767971509136,0.00080208,3070.9,3070.0,6.51465798]
[1767971509337,0.00080208,3070.9,3070.0,3.25732899]
[1767971509661,0.001,3070.6,3069.8,0.002]
[1767971509969,0.001,3070.6,3069.9,3.25743227]
[1767971510173,0.001,3070.6,3069.8,0.002]
[1767971510934,0.99376593,3070.6,3069.3,0.002]
[1767971511140,6.51359712,3070.5,3069.3,0.002]
[1767971511490,0.001,3070.6,3069.3,0.94194817]
[1767971511772,6.51440216,3070.6,3069.3,0.94194817]
[1767971511942,6.51440216,3070.6,3069.3,0.002]
[1767971512337,0.99276593,3070.5,3069.3,0.002]
[1767971513218,6.51380926,3070.4,3069.3,0.002]